[Event "Titled Tuesday Blitz June 13 Late 2023"]
[White "Kovalevsky, Stanislav"]
[Black "Almedina Ortiz, Edgardo J."]
[WhiteFideId "13508598"]
[BlackFideId "3100197"]
[WhiteElo "2112"]
[BlackElo "2217"]
[Result "1/2-1/2"]
[Round "2"]
[TimeControl "180+2"]
[Date "2023.06.13"]
[WhiteClock "0:00:06"]
[BlackClock "0:00:13"]
[Board "188"]

1. c4 {[%clk 0:03:00]}  e6 {[%clk 0:02:58]} 2. e4 {[%clk 0:03:00]}  d5 {[%clk 0:02:58]} 3. exd5 {[%clk 0:03:01]}  exd5 {[%clk 0:02:58]} 4. cxd5 {[%clk 0:03:02]}  Nf6 {[%clk 0:02:58]} 5. Nc3 {[%clk 0:03:03]}  Nxd5 {[%clk 0:02:55]} 6. Bc4 {[%clk 0:03:03]}  Nf6 {[%clk 0:02:43]} 7. Nge2 {[%clk 0:02:59]}  Be7 {[%clk 0:02:43]} 8. O-O {[%clk 0:02:58]}  O-O {[%clk 0:02:43]} 9. d4 {[%clk 0:02:58]}  Nbd7 {[%clk 0:02:41]} 10. Bf4 {[%clk 0:02:49]}  Nb6 {[%clk 0:02:38]} 11. Bd3 {[%clk 0:02:50]}  c6 {[%clk 0:02:37]} 12. Re1 {[%clk 0:02:46]}  Nbd5 {[%clk 0:02:32]} 13. Nxd5 {[%clk 0:02:46]}  Nxd5 {[%clk 0:02:29]} 14. Bg3 {[%clk 0:02:46]}  Bf6 {[%clk 0:02:22]} 15. Nc3 {[%clk 0:02:37]}  Be6 {[%clk 0:02:15]} 16. Be5 {[%clk 0:02:12]}  Re8 {[%clk 0:01:58]} 17. Qh5 {[%clk 0:01:53]}  g6 {[%clk 0:01:56]} 18. Qh6 {[%clk 0:01:53]}  Bxe5 {[%clk 0:01:44]} 19. Rxe5 {[%clk 0:01:50]}  Nf6 {[%clk 0:01:32]} 20. Ne4 {[%clk 0:01:33]}  Ng4 {[%clk 0:01:26]} 21. Qg5 {[%clk 0:01:09]}  Qxg5 {[%clk 0:01:14]} 22. Rxg5 {[%clk 0:01:08]}  h6 {[%clk 0:01:09]} 23. Rxg4 {[%clk 0:01:04]}  Bxg4 {[%clk 0:01:07]} 24. Nf6+ {[%clk 0:01:03]}  Kg7 {[%clk 0:01:08]} 25. Nxg4 {[%clk 0:01:01]}  Rad8 {[%clk 0:01:08]} 26. Ne3 {[%clk 0:00:53]}  Rxd4 {[%clk 0:01:05]} 27. Bf1 {[%clk 0:00:52]}  Rd2 {[%clk 0:01:03]} 28. b3 {[%clk 0:00:43]}  Re6 {[%clk 0:00:54]} 29. g3 {[%clk 0:00:42]}  Rf6 {[%clk 0:00:53]} 30. Ng4 {[%clk 0:00:34]}  Rf5 {[%clk 0:00:47]} 31. f4 {[%clk 0:00:17]}  Rc5 {[%clk 0:00:45]} 32. Re1 {[%clk 0:00:14]}  h5 {[%clk 0:00:42]} 33. Ne5 {[%clk 0:00:12]}  b5 {[%clk 0:00:35]} 34. a4 {[%clk 0:00:10]}  a6 {[%clk 0:00:33]} 35. axb5 {[%clk 0:00:10]}  axb5 {[%clk 0:00:32]} 36. Nd3 {[%clk 0:00:09]}  Rc3 {[%clk 0:00:29]} 37. Ne5 {[%clk 0:00:07]}  f6 {[%clk 0:00:21]} 38. Nd3 {[%clk 0:00:03]}  Rcxd3 {[%clk 0:00:21]} 39. Bxd3 {[%clk 0:00:04]}  Rxd3 {[%clk 0:00:21]} 40. Re7+ {[%clk 0:00:04]}  Kf8 {[%clk 0:00:20]} 41. Re6 {[%clk 0:00:05]}  Rxb3 {[%clk 0:00:19]} 42. Rxf6+ {[%clk 0:00:05]}  Kg7 {[%clk 0:00:19]} 43. Rxc6 {[%clk 0:00:05]}  Rb2 {[%clk 0:00:19]} 44. Rb6 {[%clk 0:00:05]}  b4 {[%clk 0:00:19]} 45. Kh1 {[%clk 0:00:04]}  b3 {[%clk 0:00:19]} 46. Kg1 {[%clk 0:00:05]}  Kf7 {[%clk 0:00:19]} 47. h3 {[%clk 0:00:05]}  Rb1+ {[%clk 0:00:18]} 48. Kg2 {[%clk 0:00:05]}  b2 {[%clk 0:00:19]} 49. g4 {[%clk 0:00:04]}  hxg4 {[%clk 0:00:18]} 50. hxg4 {[%clk 0:00:05]}  Ke7 {[%clk 0:00:18]} 51. Kh2 {[%clk 0:00:05]}  Kd7 {[%clk 0:00:17]} 52. Kg2 {[%clk 0:00:05]}  Kc7 {[%clk 0:00:17]} 53. Rb3 {[%clk 0:00:05]}  Kc6 {[%clk 0:00:17]} 54. f5 {[%clk 0:00:05]}  gxf5 {[%clk 0:00:17]} 55. gxf5 {[%clk 0:00:04]}  Kd5 {[%clk 0:00:16]} 56. Kh2 {[%clk 0:00:04]}  Ke5 {[%clk 0:00:16]} 57. Rb5+ {[%clk 0:00:04]}  Kf6 {[%clk 0:00:16]} 58. Kg2 {[%clk 0:00:04]}  Rc1 {[%clk 0:00:15]} 59. Rxb2 {[%clk 0:00:04]}  Kxf5 {[%clk 0:00:15]} 60. Rf2+ {[%clk 0:00:05]}  Kg5 {[%clk 0:00:15]} 61. Rf3 {[%clk 0:00:05]}  Rc2+ {[%clk 0:00:15]} 62. Kg3 {[%clk 0:00:06]}  Rc5 {[%clk 0:00:14]} 63. Rb3 {[%clk 0:00:06]}  Ra5 {[%clk 0:00:13]} 64. Rb4 {[%clk 0:00:06]} 1/2-1/2


[Site "https://www.chess.com"]

[Event "Titled Tuesday Blitz June 13 Late 2023"]
[White "Marin Masis, Jose Esteban"]
[Black "Balla, Tamas-Kristof"]
[WhiteFideId "6508146"]
[BlackFideId "1208497"]
[WhiteElo "1838"]
[BlackElo "2334"]
[Result "0-1"]
[Round "2"]
[TimeControl "180+2"]
[Date "2023.06.13"]
[WhiteClock "0:00:00"]
[BlackClock "0:00:49"]
[Board "189"]

1. e4 {[%clk 0:03:00]}  c5 {[%clk 0:02:59]} 2. Nf3 {[%clk 0:03:01]}  Nc6 {[%clk 0:03:00]} 3. d4 {[%clk 0:03:01]}  cxd4 {[%clk 0:03:01]} 4. Nxd4 {[%clk 0:03:01]}  e5 {[%clk 0:03:01]} 5. Nb5 {[%clk 0:03:00]}  d6 {[%clk 0:03:02]} 6. N1c3 {[%clk 0:02:58]}  a6 {[%clk 0:03:02]} 7. Na3 {[%clk 0:02:59]}  b5 {[%clk 0:03:03]} 8. Nd5 {[%clk 0:02:54]}  Nge7 {[%clk 0:03:02]} 9. Be2 {[%clk 0:02:48]}  Nxd5 {[%clk 0:02:57]} 10. exd5 {[%clk 0:02:45]}  Nd4 {[%clk 0:02:57]} 11. O-O {[%clk 0:02:41]}  Be7 {[%clk 0:02:56]} 12. Be3 {[%clk 0:02:39]}  Nf5 {[%clk 0:02:56]} 13. Bd2 {[%clk 0:02:32]}  O-O {[%clk 0:02:55]} 14. c4 {[%clk 0:02:32]}  Bg5 {[%clk 0:02:39]} 15. cxb5 {[%clk 0:02:05]}  Qf6 {[%clk 0:02:31]} 16. Bxg5 {[%clk 0:01:51]}  Qxg5 {[%clk 0:02:29]} 17. Qc1 {[%clk 0:01:49]}  Qg6 {[%clk 0:02:18]} 18. b6 {[%clk 0:01:17]}  Bb7 {[%clk 0:01:59]} 19. Qd2 {[%clk 0:00:55]}  Nd4 {[%clk 0:01:57]} 20. f3 {[%clk 0:00:34]}  Bxd5 {[%clk 0:01:51]} 21. Bd3 {[%clk 0:00:30]}  Qh5 {[%clk 0:01:40]} 22. Bc4 {[%clk 0:00:28]}  Bxc4 {[%clk 0:01:05]} 23. Nxc4 {[%clk 0:00:29]}  Rac8 {[%clk 0:01:05]} 24. Nxd6 {[%clk 0:00:18]}  Rc2 {[%clk 0:01:02]} 25. Qe3 {[%clk 0:00:13]}  Qg6 {[%clk 0:01:01]} 26. Rf2 {[%clk 0:00:00]}  Qxd6 {[%clk 0:00:49]} 0-1


[Site "https://www.chess.com"]

[Event "Titled Tuesday Blitz June 13 Late 2023"]
[White "KorolDimitriy75"]
[Black "Torres Dominguez, David"]
[BlackFideId "2220857"]
[WhiteElo "2438"]
[BlackElo "1999"]
[Result "0-1"]
[Round "2"]
[TimeControl "180+2"]
[Date "2023.06.13"]
[WhiteClock "0:00:07"]
[BlackClock "0:01:11"]
[Board "194"]

1. d4 {[%clk 0:02:56]}  e5 {[%clk 0:02:59]} 2. dxe5 {[%clk 0:02:55]}  d6 {[%clk 0:02:59]} 3. Nf3 {[%clk 0:02:54]}  Bg4 {[%clk 0:02:58]} 4. Bf4 {[%clk 0:02:54]}  Nc6 {[%clk 0:02:54]} 5. exd6 {[%clk 0:02:52]}  Qf6 {[%clk 0:02:54]} 6. g3 {[%clk 0:02:52]}  Bxd6 {[%clk 0:02:43]} 7. Bxd6 {[%clk 0:02:48]}  O-O-O {[%clk 0:02:39]} 8. Nbd2 {[%clk 0:02:43]}  Rxd6 {[%clk 0:02:38]} 9. Bg2 {[%clk 0:02:37]}  Nh6 {[%clk 0:02:18]} 10. O-O {[%clk 0:02:34]}  Bxf3 {[%clk 0:02:12]} 11. exf3 {[%clk 0:01:46]}  Rhd8 {[%clk 0:02:04]} 12. Ne4 {[%clk 0:01:05]}  Rxd1 {[%clk 0:02:04]} 13. Nxf6 {[%clk 0:01:04]}  Rxf1+ {[%clk 0:01:54]} 14. Kxf1 {[%clk 0:01:02]}  gxf6 {[%clk 0:01:53]} 15. Rc1 {[%clk 0:00:56]}  Rd6 {[%clk 0:01:49]} 16. f4 {[%clk 0:00:55]}  f5 {[%clk 0:01:46]} 17. c3 {[%clk 0:00:54]}  Kd8 {[%clk 0:01:45]} 18. Bf3 {[%clk 0:00:52]}  Ng8 {[%clk 0:01:40]} 19. Rc2 {[%clk 0:00:44]}  Nge7 {[%clk 0:01:40]} 20. h4 {[%clk 0:00:42]}  h6 {[%clk 0:01:40]} 21. Bh5 {[%clk 0:00:41]}  f6 {[%clk 0:01:34]} 22. Bf7 {[%clk 0:00:40]}  Kd7 {[%clk 0:01:33]} 23. Ke2 {[%clk 0:00:39]}  Nd8 {[%clk 0:01:33]} 24. Bc4 {[%clk 0:00:38]}  c6 {[%clk 0:01:33]} 25. a4 {[%clk 0:00:37]}  b6 {[%clk 0:01:32]} 26. Bd3 {[%clk 0:00:31]}  Ne6 {[%clk 0:01:29]} 27. Bc4 {[%clk 0:00:30]}  Nd5 {[%clk 0:01:27]} 28. Ba2 {[%clk 0:00:20]}  Nc5 {[%clk 0:01:24]} 29. b3 {[%clk 0:00:19]}  Ne4 {[%clk 0:01:20]} 30. c4 {[%clk 0:00:15]}  Nb4 {[%clk 0:01:18]} 31. Rb2 {[%clk 0:00:12]}  Nxa2 {[%clk 0:01:18]} 32. f3 {[%clk 0:00:11]}  Nac3+ {[%clk 0:01:13]} 33. Kf1 {[%clk 0:00:09]}  Rd1+ {[%clk 0:01:10]} 34. Kg2 {[%clk 0:00:08]}  Rd2+ {[%clk 0:01:11]} 35. Rxd2+ {[%clk 0:00:07]}  Nxd2 {[%clk 0:01:11]} 0-1


[Site "https://www.chess.com"]

[Event "Titled Tuesday Blitz June 13 Late 2023"]
[White "Garmendiarov"]
[Black "dorpato"]
[WhiteElo "2433"]
[BlackElo "2067"]
[Result "1-0"]
[Round "2"]
[TimeControl "180+2"]
[Date "2023.06.13"]
[WhiteClock "0:02:22"]
[BlackClock "0:01:20"]
[Board "196"]

1. d4 {[%clk 0:03:00]}  Nf6 {[%clk 0:02:57]} 2. Bf4 {[%clk 0:03:01]}  g6 {[%clk 0:02:53]} 3. Nc3 {[%clk 0:03:01]}  Bg7 {[%clk 0:02:48]} 4. e4 {[%clk 0:03:01]}  d6 {[%clk 0:02:42]} 5. Qd2 {[%clk 0:03:01]}  O-O {[%clk 0:02:39]} 6. O-O-O {[%clk 0:03:02]}  b6 {[%clk 0:02:36]} 7. f3 {[%clk 0:03:02]}  Bb7 {[%clk 0:02:37]} 8. Bh6 {[%clk 0:03:02]}  c5 {[%clk 0:02:37]} 9. dxc5 {[%clk 0:03:01]}  bxc5 {[%clk 0:02:36]} 10. h4 {[%clk 0:03:01]}  Nbd7 {[%clk 0:02:34]} 11. h5 {[%clk 0:03:00]}  gxh5 {[%clk 0:02:29]} 12. Qg5 {[%clk 0:02:53]}  Ne8 {[%clk 0:02:11]} 13. Qxh5 {[%clk 0:02:31]}  Bxh6+ {[%clk 0:01:53]} 14. Qxh6 {[%clk 0:02:32]}  Ndf6 {[%clk 0:01:47]} 15. e5 {[%clk 0:02:28]}  d5 {[%clk 0:01:42]} 16. exf6 {[%clk 0:02:26]}  Nxf6 {[%clk 0:01:20]} 17. Bd3 {[%clk 0:02:22]} 1-0


[Site "https://www.chess.com"]

[Event "Titled Tuesday Blitz June 13 Late 2023"]
[White "Dias, Joao Batista"]
[Black "Kubatko, Ivan"]
[WhiteFideId "2108240"]
[BlackFideId "24111473"]
[WhiteElo "1907"]
[BlackElo "2285"]
[Result "1-0"]
[Round "2"]
[TimeControl "180+2"]
[Date "2023.06.13"]
[WhiteClock "0:01:11"]
[BlackClock "0:00:04"]
[Board "197"]

1. e4 {[%clk 0:02:48]}  d5 {[%clk 0:02:58]} 2. exd5 {[%clk 0:02:48]}  Qxd5 {[%clk 0:02:55]} 3. Nc3 {[%clk 0:02:49]}  Qa5 {[%clk 0:02:54]} 4. Nf3 {[%clk 0:02:49]}  Nf6 {[%clk 0:02:53]} 5. h3 {[%clk 0:02:50]}  a6 {[%clk 0:02:52]} 6. Bc4 {[%clk 0:02:50]}  b5 {[%clk 0:02:51]} 7. Bb3 {[%clk 0:02:50]}  e6 {[%clk 0:02:49]} 8. O-O {[%clk 0:02:50]}  c5 {[%clk 0:02:47]} 9. a4 {[%clk 0:02:49]}  c4 {[%clk 0:02:46]} 10. Ba2 {[%clk 0:02:48]}  Bb7 {[%clk 0:02:33]} 11. axb5 {[%clk 0:02:47]}  axb5 {[%clk 0:02:31]} 12. d3 {[%clk 0:02:40]}  b4 {[%clk 0:02:22]} 13. Ne4 {[%clk 0:02:39]}  Nxe4 {[%clk 0:02:14]} 14. dxe4 {[%clk 0:02:39]}  b3 {[%clk 0:02:13]} 15. cxb3 {[%clk 0:02:38]}  Be7 {[%clk 0:01:45]} 16. bxc4 {[%clk 0:02:35]}  O-O {[%clk 0:01:43]} 17. Be3 {[%clk 0:02:33]}  Rd8 {[%clk 0:01:26]} 18. Qc2 {[%clk 0:02:30]}  Nc6 {[%clk 0:01:24]} 19. Bb3 {[%clk 0:02:26]}  Qh5 {[%clk 0:01:21]} 20. Rxa8 {[%clk 0:02:24]}  Rxa8 {[%clk 0:01:20]} 21. Nd4 {[%clk 0:02:21]}  Nb4 {[%clk 0:01:00]} 22. Qb1 {[%clk 0:02:13]}  Qg6 {[%clk 0:00:55]} 23. f3 {[%clk 0:02:11]}  Bc5 {[%clk 0:00:53]} 24. Re1 {[%clk 0:01:59]}  Rd8 {[%clk 0:00:43]} 25. Nc2 {[%clk 0:01:58]}  Qh5 {[%clk 0:00:34]} 26. Nxb4 {[%clk 0:01:54]}  Bxb4 {[%clk 0:00:32]} 27. Rd1 {[%clk 0:01:54]}  Rc8 {[%clk 0:00:31]} 28. Qc2 {[%clk 0:01:52]}  Bc5 {[%clk 0:00:26]} 29. Bxc5 {[%clk 0:01:49]}  Qxc5+ {[%clk 0:00:27]} 30. Qf2 {[%clk 0:01:49]}  Qb4 {[%clk 0:00:27]} 31. Qc2 {[%clk 0:01:47]}  Bc6 {[%clk 0:00:25]} 32. Ba2 {[%clk 0:01:38]}  Kf8 {[%clk 0:00:24]} 33. b3 {[%clk 0:01:38]}  Ra8 {[%clk 0:00:24]} 34. Bb1 {[%clk 0:01:37]}  Qc5+ {[%clk 0:00:22]} 35. Qf2 {[%clk 0:01:35]}  Qb4 {[%clk 0:00:22]} 36. Qd2 {[%clk 0:01:33]}  Qxd2 {[%clk 0:00:18]} 37. Rxd2 {[%clk 0:01:31]}  Ra1 {[%clk 0:00:19]} 38. Rd1 {[%clk 0:01:30]}  Ke7 {[%clk 0:00:17]} 39. Kf2 {[%clk 0:01:30]}  e5 {[%clk 0:00:17]} 40. Ke2 {[%clk 0:01:30]}  Ra3 {[%clk 0:00:16]} 41. Bc2 {[%clk 0:01:30]}  Ra2 {[%clk 0:00:17]} 42. Kd3 {[%clk 0:01:30]}  Kd6 {[%clk 0:00:15]} 43. Kc3+ {[%clk 0:01:30]}  Kc5 {[%clk 0:00:15]} 44. Rd2 {[%clk 0:01:24]}  Ra1 {[%clk 0:00:13]} 45. Bd1 {[%clk 0:01:24]}  Ra3 {[%clk 0:00:11]} 46. Kb2 {[%clk 0:01:23]}  Ra8 {[%clk 0:00:11]} 47. Kc3 {[%clk 0:01:20]}  Ra3 {[%clk 0:00:11]} 48. Rb2 {[%clk 0:01:19]}  f6 {[%clk 0:00:11]} 49. Bc2 {[%clk 0:01:18]}  g5 {[%clk 0:00:11]} 50. Bd1 {[%clk 0:01:17]}  h5 {[%clk 0:00:11]} 51. Rd2 {[%clk 0:01:15]}  h4 {[%clk 0:00:10]} 52. Kb2 {[%clk 0:01:15]}  Ra8 {[%clk 0:00:09]} 53. Kc3 {[%clk 0:01:15]}  Ra3 {[%clk 0:00:09]} 54. Rd8 {[%clk 0:01:15]}  Ra1 {[%clk 0:00:09]} 55. Kb2 {[%clk 0:01:13]}  Ra8 {[%clk 0:00:07]} 56. Rxa8 {[%clk 0:01:11]}  Bxa8 {[%clk 0:00:04]} 57. Kc3 {[%clk 0:01:11]} 1-0


[Site "https://www.chess.com"]

[Event "Titled Tuesday Blitz June 13 Late 2023"]
[White "Ammar, Sedrani"]
[Black "Chess_maylovsky"]
[WhiteFideId "9312331"]
[WhiteElo "2115"]
[BlackElo "2038"]
[Result "1-0"]
[Round "2"]
[TimeControl "180+2"]
[Date "2023.06.13"]
[WhiteClock "0:01:54"]
[BlackClock "0:00:06"]
[Board "198"]

1. c4 {[%clk 0:02:59]}  Nf6 {[%clk 0:02:26]} 2. Nc3 {[%clk 0:02:57]}  g6 {[%clk 0:02:26]} 3. Nf3 {[%clk 0:02:55]}  Bg7 {[%clk 0:02:25]} 4. g3 {[%clk 0:02:53]}  b6 {[%clk 0:02:22]} 5. Bg2 {[%clk 0:02:53]}  Bb7 {[%clk 0:02:22]} 6. O-O {[%clk 0:02:54]}  O-O {[%clk 0:02:21]} 7. d3 {[%clk 0:02:54]}  d6 {[%clk 0:02:21]} 8. e4 {[%clk 0:02:48]}  Nbd7 {[%clk 0:02:20]} 9. h3 {[%clk 0:02:45]}  e6 {[%clk 0:02:14]} 10. Bg5 {[%clk 0:02:44]}  h6 {[%clk 0:02:08]} 11. Be3 {[%clk 0:02:43]}  d5 {[%clk 0:01:47]} 12. cxd5 {[%clk 0:02:40]}  exd5 {[%clk 0:01:48]} 13. e5 {[%clk 0:02:40]}  Ne8 {[%clk 0:01:38]} 14. d4 {[%clk 0:02:39]}  a6 {[%clk 0:01:31]} 15. Qd2 {[%clk 0:02:39]}  Kh7 {[%clk 0:01:26]} 16. Rae1 {[%clk 0:02:33]}  c5 {[%clk 0:01:11]} 17. Nh2 {[%clk 0:02:31]}  cxd4 {[%clk 0:00:54]} 18. Bxd4 {[%clk 0:02:32]}  Nc5 {[%clk 0:00:54]} 19. f4 {[%clk 0:02:27]}  Nc7 {[%clk 0:00:50]} 20. Ng4 {[%clk 0:02:24]}  h5 {[%clk 0:00:47]} 21. Ne3 {[%clk 0:02:22]}  N7e6 {[%clk 0:00:46]} 22. Nexd5 {[%clk 0:02:17]}  Nxd4 {[%clk 0:00:46]} 23. Qxd4 {[%clk 0:02:16]}  Ne6 {[%clk 0:00:38]} 24. Qxb6 {[%clk 0:02:15]}  Bxd5 {[%clk 0:00:34]} 25. Nxd5 {[%clk 0:02:13]}  Rb8 {[%clk 0:00:31]} 26. Qxd8 {[%clk 0:02:12]}  Rfxd8 {[%clk 0:00:31]} 27. b3 {[%clk 0:02:12]}  Rbc8 {[%clk 0:00:21]} 28. Rc1 {[%clk 0:02:03]}  Nd4 {[%clk 0:00:19]} 29. Rxc8 {[%clk 0:01:59]}  Rxc8 {[%clk 0:00:19]} 30. Rd1 {[%clk 0:01:59]}  Ne2+ {[%clk 0:00:18]} 31. Kh2 {[%clk 0:01:59]}  Nc3 {[%clk 0:00:18]} 32. Rc1 {[%clk 0:01:57]}  Rd8 {[%clk 0:00:14]} 33. Rxc3 {[%clk 0:01:56]}  Bf8 {[%clk 0:00:13]} 34. Rc7 {[%clk 0:01:55]}  Kg7 {[%clk 0:00:06]} 35. e6 {[%clk 0:01:54]} 1-0


[Site "https://www.chess.com"]

[Event "Titled Tuesday Blitz June 13 Late 2023"]
[White "Can, Melih Kaan"]
[Black "Sanchez, Robert"]
[WhiteFideId "6317383"]
[BlackFideId "2034360"]
[WhiteElo "2010"]
[BlackElo "1950"]
[Result "1-0"]
[Round "2"]
[TimeControl "180+2"]
[Date "2023.06.13"]
[WhiteClock "0:00:14"]
[BlackClock "0:00:26"]
[Board "200"]

1. Nf3 {[%clk 0:03:00]}  Nf6 {[%clk 0:02:59]} 2. g3 {[%clk 0:03:00]}  g6 {[%clk 0:03:00]} 3. Bg2 {[%clk 0:03:01]}  Bg7 {[%clk 0:03:01]} 4. O-O {[%clk 0:03:02]}  d6 {[%clk 0:03:02]} 5. c4 {[%clk 0:03:02]}  O-O {[%clk 0:03:03]} 6. b3 {[%clk 0:02:58]}  Nbd7 {[%clk 0:03:03]} 7. Bb2 {[%clk 0:02:59]}  e5 {[%clk 0:03:04]} 8. d3 {[%clk 0:02:51]}  h6 {[%clk 0:03:03]} 9. Nbd2 {[%clk 0:02:51]}  a5 {[%clk 0:03:03]} 10. a3 {[%clk 0:02:51]}  c6 {[%clk 0:03:02]} 11. b4 {[%clk 0:02:51]}  Re8 {[%clk 0:03:02]} 12. Ne1 {[%clk 0:02:50]}  d5 {[%clk 0:03:00]} 13. b5 {[%clk 0:02:48]}  Nc5 {[%clk 0:02:51]} 14. a4 {[%clk 0:02:35]}  Bd7 {[%clk 0:02:42]} 15. Nb3 {[%clk 0:02:33]}  Nxb3 {[%clk 0:02:42]} 16. Qxb3 {[%clk 0:02:34]}  d4 {[%clk 0:02:41]} 17. Nc2 {[%clk 0:02:19]}  Rb8 {[%clk 0:02:36]} 18. e3 {[%clk 0:02:16]}  c5 {[%clk 0:02:36]} 19. exd4 {[%clk 0:02:04]}  exd4 {[%clk 0:02:33]} 20. Rae1 {[%clk 0:02:03]}  Qc8 {[%clk 0:02:24]} 21. Bc1 {[%clk 0:01:59]}  Bf5 {[%clk 0:02:19]} 22. Rxe8+ {[%clk 0:01:52]}  Qxe8 {[%clk 0:02:05]} 23. Bf4 {[%clk 0:01:50]}  Rd8 {[%clk 0:01:54]} 24. Re1 {[%clk 0:01:49]}  Qd7 {[%clk 0:01:53]} 25. Na3 {[%clk 0:01:42]}  Bh3 {[%clk 0:01:46]} 26. b6 {[%clk 0:01:33]}  Bxg2 {[%clk 0:01:40]} 27. Kxg2 {[%clk 0:01:30]}  Nh5 {[%clk 0:01:38]} 28. Bc7 {[%clk 0:01:27]}  Qc6+ {[%clk 0:01:37]} 29. Kg1 {[%clk 0:01:25]}  Re8 {[%clk 0:01:33]} 30. Rxe8+ {[%clk 0:01:16]}  Qxe8 {[%clk 0:01:34]} 31. Qd1 {[%clk 0:01:16]}  Nf6 {[%clk 0:01:26]} 32. Nb5 {[%clk 0:01:15]}  h5 {[%clk 0:01:21]} 33. Qf3 {[%clk 0:01:14]}  Ng4 {[%clk 0:01:10]} 34. h3 {[%clk 0:01:07]}  Qe1+ {[%clk 0:01:09]} 35. Kg2 {[%clk 0:01:06]}  Nh6 {[%clk 0:01:05]} 36. Qxb7 {[%clk 0:00:50]}  Nf5 {[%clk 0:01:04]} 37. Qf3 {[%clk 0:00:49]}  Qd2 {[%clk 0:00:46]} 38. b7 {[%clk 0:00:46]}  Ne3+ {[%clk 0:00:47]} 39. Kh2 {[%clk 0:00:29]}  Nf1+ {[%clk 0:00:45]} 40. Kg1 {[%clk 0:00:27]}  Qe1 {[%clk 0:00:40]} 41. b8=Q+ {[%clk 0:00:26]}  Kh7 {[%clk 0:00:40]} 42. Kg2 {[%clk 0:00:22]}  Nd2 {[%clk 0:00:37]} 43. Qxf7 {[%clk 0:00:16]}  Qf1+ {[%clk 0:00:28]} 44. Kh2 {[%clk 0:00:16]}  Qd1 {[%clk 0:00:26]} 45. Qbg8+ {[%clk 0:00:14]} 1-0


[Site "https://www.chess.com"]

[Event "Titled Tuesday Blitz June 13 Late 2023"]
[White "Rodrigue-Lemieux, Shawn"]
[Black "Nakamura, Hikaru"]
[WhiteFideId "2620049"]
[BlackFideId "2016192"]
[WhiteElo "2405"]
[BlackElo "2874"]
[Result "0-1"]
[Round "3"]
[TimeControl "180+2"]
[Date "2023.06.13"]
[WhiteClock "0:00:03"]
[BlackClock "0:01:35"]
[Board "1"]

1. e4 {[%clk 0:03:00]}  c5 {[%clk 0:03:00]} 2. Nf3 {[%clk 0:03:01]}  e6 {[%clk 0:02:59]} 3. d4 {[%clk 0:03:01]}  cxd4 {[%clk 0:03:00]} 4. Nxd4 {[%clk 0:03:02]}  a6 {[%clk 0:03:01]} 5. c4 {[%clk 0:03:03]}  Nf6 {[%clk 0:03:00]} 6. Nc3 {[%clk 0:03:03]}  Qc7 {[%clk 0:03:01]} 7. a3 {[%clk 0:03:03]}  Nxe4 {[%clk 0:03:01]} 8. Nxe4 {[%clk 0:03:04]}  Qe5 {[%clk 0:03:01]} 9. Bd3 {[%clk 0:02:59]}  Qxd4 {[%clk 0:03:02]} 10. Qe2 {[%clk 0:02:59]}  Nc6 {[%clk 0:02:57]} 11. Be3 {[%clk 0:02:58]}  Qe5 {[%clk 0:02:57]} 12. f4 {[%clk 0:02:54]}  Qc7 {[%clk 0:02:58]} 13. O-O {[%clk 0:02:52]}  f5 {[%clk 0:02:57]} 14. Nc3 {[%clk 0:02:51]}  Be7 {[%clk 0:02:56]} 15. Bxf5 {[%clk 0:02:43]}  exf5 {[%clk 0:02:51]} 16. Nd5 {[%clk 0:02:43]}  Qd6 {[%clk 0:02:52]} 17. Rad1 {[%clk 0:02:36]}  O-O {[%clk 0:02:51]} 18. Nb6 {[%clk 0:02:25]}  Qb8 {[%clk 0:02:51]} 19. Nxa8 {[%clk 0:02:22]}  Qxa8 {[%clk 0:02:52]} 20. Bb6 {[%clk 0:02:20]}  a5 {[%clk 0:02:40]} 21. c5 {[%clk 0:02:10]}  Qa6 {[%clk 0:02:37]} 22. Qd2 {[%clk 0:02:06]}  d6 {[%clk 0:02:35]} 23. Qd5+ {[%clk 0:01:59]}  Kh8 {[%clk 0:02:33]} 24. Rfe1 {[%clk 0:01:53]}  Qb5 {[%clk 0:02:28]} 25. Rd2 {[%clk 0:01:14]}  dxc5 {[%clk 0:02:22]} 26. Bc7 {[%clk 0:00:36]}  h6 {[%clk 0:02:12]} 27. Be5 {[%clk 0:00:18]}  Nxe5 {[%clk 0:02:06]} 28. Qxe5 {[%clk 0:00:19]}  Bf6 {[%clk 0:02:05]} 29. Qc7 {[%clk 0:00:19]}  Bd4+ {[%clk 0:02:01]} 30. Kh1 {[%clk 0:00:19]}  Qc6 {[%clk 0:02:01]} 31. Qxc6 {[%clk 0:00:17]}  bxc6 {[%clk 0:02:02]} 32. Re7 {[%clk 0:00:16]}  Kh7 {[%clk 0:01:54]} 33. h3 {[%clk 0:00:16]}  Ba6 {[%clk 0:01:54]} 34. b4 {[%clk 0:00:15]}  axb4 {[%clk 0:01:54]} 35. axb4 {[%clk 0:00:16]}  Bc4 {[%clk 0:01:53]} 36. bxc5 {[%clk 0:00:14]}  Bxc5 {[%clk 0:01:53]} 37. Rc7 {[%clk 0:00:15]}  Bb5 {[%clk 0:01:37]} 38. Rdd7 {[%clk 0:00:15]}  Rg8 {[%clk 0:01:38]} 39. Rf7 {[%clk 0:00:12]}  Bd6 {[%clk 0:01:36]} 40. Rcd7 {[%clk 0:00:11]}  Bc4 {[%clk 0:01:35]} 41. Rxf5 {[%clk 0:00:06]}  Be6 {[%clk 0:01:35]} 42. Rxd6 {[%clk 0:00:07]}  Bxf5 {[%clk 0:01:36]} 43. Rxc6 {[%clk 0:00:07]}  Ra8 {[%clk 0:01:35]} 44. Kh2 {[%clk 0:00:07]}  Ra2 {[%clk 0:01:34]} 45. Rc3 {[%clk 0:00:07]}  Be4 {[%clk 0:01:35]} 46. Rg3 {[%clk 0:00:08]}  Rf2 {[%clk 0:01:34]} 47. Rg4 {[%clk 0:00:08]}  h5 {[%clk 0:01:34]} 48. Rg5 {[%clk 0:00:07]}  g6 {[%clk 0:01:35]} 49. Rg3 {[%clk 0:00:03]}  Rxf4 {[%clk 0:01:34]} 50. Re3 {[%clk 0:00:04]}  Bf5 {[%clk 0:01:34]} 51. Kg3 {[%clk 0:00:05]}  Re4 {[%clk 0:01:35]} 52. Ra3 {[%clk 0:00:05]}  h4+ {[%clk 0:01:35]} 53. Kf3 {[%clk 0:00:05]}  Rb4 {[%clk 0:01:34]} 54. Ra7+ {[%clk 0:00:05]}  Kh6 {[%clk 0:01:34]} 55. Ra3 {[%clk 0:00:03]}  Kg5 {[%clk 0:01:35]} 0-1


[Site "https://www.chess.com"]